Cogmind - Beta 11 @@@ ROGUE MODE // 2022.03.25 @ 17:25:50 Player: RNGesus Result: Destroyed by as-42064 with Assembled F-torch Performance ------------- Evolutions (0) 0 Regions Visited (2) 400 Robots Destroyed (22) 110 Value Destroyed (324) 324 Prototype IDs (0) 0 Alien Tech Used (0) 0 Bonus (0) 0 TOTAL SCORE: 834 Bonus ------- None Cogmind --------- Core Integrity 0/250 Matter 165/300 Energy 100/100 System Corruption 0% Temperature Danger (484) Movement Core (200) Ox3 Location -10/Mines Parts ------- > --- POWER (1) -------- (None) > --- PROPULSION (2) --- (None) > --- UTILITY (2) ------ Medium Storage Unit > --- WEAPON (2) ------- Light Assault Rifle Light Assault Rifle > --- INVENTORY (10) --- Compact Wheel Small Storage Unit Structural Scanner Seismic Detector Improved Trap Extractor (0/6) Shock Rifle Mining Claw Peak State ------------ > --- POWER ------------ Light Ion Engine > --- PROPULSION ------- Light Treads Light Treads > --- UTILITY ---------- Small Storage Unit Improved Light Armor Plating > --- WEAPON ----------- Assault Rifle Mining Claw > --- INVENTORY -------- Light Ion Engine Compact Wheel Medium Storage Unit Seismic Detector Shock Rifle Assault Rifle Light Assault Rifle Light Assault Rifle [Rating: 10] Favorites ----------- Power Light Ion Engine Engine Light Ion Engine Propulsion Light Treads Treads Light Treads Utility Small Storage Unit Device Structural Scanner Storage Small Storage Unit Protection Improved Light Armor Plating Weapon Assault Rifle Ballistic Gun Assault Rifle Slashing Weapon Mining Claw Build | -11 -10 -10 ------- Run | Scr Mat Min Slots Evolved . | . . . Power . | . . . Propulsion . | . . . Utility . | . . . Weapon . | . . . Parts Attached 17 | 7 3 7 Power 3 | 1 1 1 Engine 3 | 1 1 1 Core . | . . . Reactor . | . . . Propulsion 2 | 2 . . Treads 2 | 2 . . Leg . | . . . Wheel . | . . . Hover . | . . . Flight . | . . . Utility 5 | 1 1 3 Device 1 | . 1 . Storage 2 | 1 . 1 Processor . | . . . Hackware . | . . . Protection 2 | . . 2 Artifact . | . . . Weapon 7 | 3 1 3 Energy Gun . | . . . Energy Cannon . | . . . Ballistic Gun 6 | 3 . 3 Ballistic Cannon . | . . . Launcher . | . . . Special Weapon . | . . . Impact Weapon . | . . . Slashing Weapon 1 | . 1 . Piercing Weapon . | . . . Special Melee Weapon . | . . . Unidentified Prototypes . | . . . Parts Lost 8 | . 1 7 Power 3 | . 1 2 Propulsion 2 | . . 2 Utility 1 | . . 1 Weapon 2 | . . 2 Highest Loss Streak 6 | . 1 6 To Critical Strikes . | . . . Average Slot Usage (%) 87 | . 87 88 Engine 13 | . 13 12 Treads 27 | . 28 25 Device 2 | . 2 2 Storage 14 | . 14 14 Ballistic Gun 22 | . 22 24 Slashing Weapon 5 | . 6 3 Naked Turns . | . . . Heaviest Build 20 | 12 13 20 Greatest Support 40 | 40 40 40 Greatest Overweight (x) . | . . . Average Overweight (x) . | . . . Largest Inventory Capacity 10 | 8 8 10 Average Capacity 8 | 7 8 9 Most Carried 10 | 4 8 10 Average Carried 6 | 2 6 8 Final Capacity 10 | 8 8 10 Final Carried 7 | 4 7 7 Class Distribution -------------------- 100% | Mutant Dominant Class ---------------- Mutant | -10/Materials Mutant | -10/Mines Resources | -11 -10 -10 ----------- Run | Scr Mat Min Matter Collected 585 | 256 267 62 Remotely . | . . . Salvage Created 741 | 114 517 110 Parts 50 | 12 37 1 Haulers Intercepted 1 | . 1 . Recyclers Shooed 3 | . 3 . Parts Field Recycled . | . . . Retrieved Matter . | . . . Parts Self-Destructed . | . . . Prevented . | . . . Kills | -11 -10 -10 ------- Run | Scr Mat Min Combat Hostiles Destroyed 16 | . 10 6 Guns 16 | . 10 6 Classes Destroyed 9 | 2 6 1 Worker 1 | . 1 . Builder 2 | . 2 . Tunneler 3 | 3 . . Hauler 1 | . 1 . Recycler 3 | 1 2 . Operator 1 | . 1 . Swarmer 6 | . 6 . Grunt 5 | . 4 1 Assembled 5 | . . 5 Best Kill Streak 6 | 4 5 6 Combat Bots Only 6 | . 5 6 Max Kills in Single Turn 2 | 2 1 1 Gunslinging . | . . . Exploded . | . . . Melee . | . . . Uniques/NPCs Destroyed . | . . . Combat | -11 -10 -10 -------- Run | Scr Mat Min Damage Taken 1167 | . 341 826 Core 256 | . 67 189 Absorbed by Shields . | . . . Core Remaining (%) 100 | 100 . . Volleys Fired 63 | 5 33 25 Largest 2 | 2 2 2 Hottest 40 | 40 40 40 Shots Fired 126 | 10 66 50 Gun 126 | 10 66 50 Cannon . | . . . Launcher . | . . . Special . | . . . Kinetic 126 | 10 66 50 Thermal . | . . . Explosive . | . . . Electromagnetic . | . . . Robot Hit Streak 12 | 2 12 7 Robot Miss Streak 3 | 1 3 3 Penetration Max . | . . . Secondary Targets 3 | . 1 2 Max Gunslinging Chain 1 | . 1 1 Shots Hit Robots 89 | 6 53 30 Core Hits 40 | 4 23 13 Critical Kills 2 | . 2 . Critical Parts Destroyed 2 | . 1 1 Critical Strikes 4 | . 3 1 Destroy 4 | . 3 1 Melee Attacks 19 | . 19 . Impact . | . . . Slashing 19 | . 19 . Piercing . | . . . Sneak Attacks 8 | . 8 . Combat Hostiles . | . . . Follow-up Attacks . | . . . Damage Inflicted 1422 | 93 980 349 Guns 1015 | 93 573 349 Cannons . | . . . Explosions . | . . . Melee 407 | . 407 . Ramming . | . . . Kinetic 1015 | 93 573 349 Thermal . | . . . Explosive . | . . . Electromagnetic . | . . . Impact . | . . . Slashing 407 | . 407 . Piercing . | . . . Highest Corruption . | . . . Average Corruption . | . . . Corruption Purged . | . . . Corruption Blocked . | . . . Overload Shots . | . . . Overflow Damage 102 | . 102 . Projectiles . | . . . Explosions . | . . . Melee 102 | . 102 . Knockbacks . | . . . Impact . | . . . Kinetic . | . . . Secondary . | . . . Self-Inflicted Damage . | . . . Shots . | . . . Rammed . | . . . Targets Rammed . | . . . Kicked . | . . . Crushed . | . . . Highest Temperature 474 | . 20 474 Average Temperature 161 | . 5 192 Received Heat Transfer 1153 | . 153 1000 Effects 2 | . . 2 Shutdowns 1 | . . 1 Matter Decay 1 | . . 1 Siege Activations . | . . . Robots Corrupted . | . . . Combat Hostiles . | . . . Parts Fried . | . . . Impact Corruptions . | . . . Robots Melted . | . . . Combat Hostiles . | . . . Parts Melted . | . . . Heat Transferred . | . . . Parts Sabotaged . | . . . Parts Stolen . | . . . Parts Stripped . | . . . Power Chain Reactions . | . . . Missiles Intercepted . | . . . Alert | -11 -10 -10 ------- Run | Scr Mat Min Peak Influence 244 | 20 244 63 Initial 28 | . 13 28 Average 80 | 4 91 39 Maximum Alert Level 1 | . 1 . Low Security (%) 88 | 100 85 100 Level 1 11 | . 14 . Level 2 . | . . . Level 3 . | . . . Level 4 . | . . . Level 5 . | . . . High Security . | . . . Max Security . | . . . Squads Dispatched 1 | . 1 . Investigation . | . . . Extermination . | . . . Reinforcement 1 | . 1 . Assault . | . . . Garrison . | . . . Intercept . | . . . Searches Triggered . | . . . Construction Impeded . | . . . Haulers Reinforced . | . . . Active Scanning Responses . | . . . Cargo Convoy Interrupts . | . . . Stealth | -11 -10 -10 --------- Run | Scr Mat Min Distress Signals 2 | . 2 . Communications Jammed . | . . . Distress Signals . | . . . Times Spotted 40 | . 27 13 Peak Tracking Total 6 | . 6 6 Tactical Retreats 2 | . . 2 Traps | -11 -10 -10 ------- Run | Scr Mat Min Traps Triggered 1 | . . 1 Indirectly . | . . . Trap Hack Attempts . | . . . Triggered . | . . . Disarmed . | . . . Reprogrammed . | . . . Reused . | . . . Traps Extracted . | . . . Installed . | . . . Triggered . | . . . Machines | -11 -10 -10 ---------- Run | Scr Mat Min Machines Disabled . | . . . Max in Single Turn . | . . . Machines Sabotaged . | . . . Garrisons Compromised . | . . . Overloaded Fab Kills . | . . . Hacking | -11 -10 -10 --------- Run | Scr Mat Min Machines Accessed 2 | . 1 1 Terminals 1 | . 1 . Fabricators . | . . . Repair Stations . | . . . Recycling Units . | . . . Scanalyzers . | . . . Garrison Access . | . . . Total Hacks 3 | . 2 1 Successful 3 | . 2 1 Failed . | . . . Catastrophic . | . . . Database Lockouts . | . . . Manual 1 | . 1 . Terminals 2 | . 2 . Fabricators . | . . . Repair Stations . | . . . Recycling Units . | . . . Scanalyzers . | . . . Garrison Access . | . . . Terminal Hacks 2 | . 1 1 Open Door 1 | . . 1 Branch Access Points 1 | . 1 . Fabricator Hacks . | . . . Repair Station Hacks . | . . . Recycling Unit Hacks . | . . . Scanalyzer . | . . . Garrison Access Hacks . | . . . Unauthorized Hacks 1 | . 1 . Terminals 1 | . 1 . Operators 1 | . 1 . Fabricators . | . . . Repair Stations . | . . . Recycling Units . | . . . Scanalyzers . | . . . Garrison Access . | . . . Data Cores Recovered . | . . . Used . | . . . Hacking Detections 1 | . 1 . Full Trace Events . | . . . Feedback Events . | . . . Feedback Blocked . | . . . Robot Schematics Acquired . | . . . Robots Built . | . . . Authchips . | . . . Time . | . . . Total Robot Build Rating . | . . . Part Schematics Acquired . | . . . Parts Built . | . . . Authchips . | . . . Time . | . . . Total Part Build Rating . | . . . Parts Repaired . | . . . Time . | . . . Parts Recycled . | . . . Recycled Matter . | . . . Retrieved Matter . | . . . Retrieved Components . | . . . Parts Scanalyzed . | . . . Part Schematics Acquired . | . . . Parts Damaged . | . . . Bothacking | -11 -10 -10 ------------ Run | Scr Mat Min Used RIF Installer . | . . . Robots Hacked . | . . . Non-combat . | . . . Combat . | . . . Robot Hacks Applied . | . . . Relay Couplers Released . | . . . Fabnet Peak Effective % . | . . . Robots Rewired . | . . . Allies Hacked . | . . . Hacks Repelled . | . . . Allies | -11 -10 -10 -------- Run | Scr Mat Min Total Allies . | . . . Largest Group . | . . . Highest-Rated Group . | . . . Highest-Rated Ally . | . . . Total Orders . | . . . Ally Attacks . | . . . Total Damage . | . . . Kills . | . . . Allies Corrupted . | . . . Allies Melted . | . . . Intel | -11 -10 -10 ------- Run | Scr Mat Min Robot Analysis Total . | . . . Derelict Logs Recovered . | . . . Drone Launches . | . . . Drone Recoveries . | . . . Exploration | -11 -10 -10 ------------- Run | Scr Mat Min Turns Passed 1432 | 95 1187 150 Spaces Moved 715 | 45 630 40 Core 4 | 4 . . Treads 711 | 41 630 40 Legs . | . . . Wheels . | . . . Hover . | . . . Flight . | . . . Fastest Speed 50 | 50 160 160 Average Speed 159 | 150 160 160 Slowest Speed 160 | 160 160 160 Overloaded Moves . | . . . Propulsion Burnouts . | . . . Robots Hopped . | . . . Cave-ins Triggered . | . . . Exploration Rate (%) 34 | 4 84 15 Regions Visited 2 Branch Regions 1 Pre-discovered Areas . | . . . Known Exits Taken 1 | . 1 . Unknown Exits Taken 1 | 1 . . Scrap Searched . | . . . Spaces Dug 4 | . 4 . Terrain Destroyed 4 | . 4 . Melee 4 | . 4 . Projectile . | . . . AOE . | . . . Terrain Rammed . | . . . Walls Destroyed . | . . . Machines Disabled . | . . . Actions | -11 -10 -10 --------- Run | Scr Mat Min Total 842 | 59 705 78 Wait 17 | . 15 2 Move 713 | 44 629 40 Hop . | . . . Pick Up 11 | 3 5 3 Fast Attach 9 | 6 1 2 Attach 4 | . 1 3 Detach . | . . . Swap 4 | 1 1 2 Drop 2 | . 1 1 Fire 63 | 5 33 25 Melee 19 | . 19 . Ram . | . . . Kick . | . . . Crush . | . . . Escape Stasis . | . . . Rewire . | . . . Trap . | . . . Miscellaneous . | . . . Route ------- -11/Scrapyard -10/Materials (discovered 5 exits: [*Mat x3] / *Min x2) -10/Mines History --------- Turn | Location | Event 27 | -11/Scrapyard | Discovered new exit (range 15) 96 | -11/Scrapyard | Entered Materials 263 | -10/Materials | Discovered new exit (range 8) 318 | -10/Materials | Build established: Mutant 368 | -10/Materials | Identified exit to Mines 403 | -10/Materials | Discovered new exit (range 4) 849 | -10/Materials | Discovered new exit (range 15) 981 | -10/Materials | Discovered new exit (range 15) 1283 | -10/Materials | Entered Mines 1284 | -10/Mines | Assembled infested the area 1289 | -10/Mines | Assisted by a Guerilla fighting off Assembled 1296 | -10/Mines | Met a Derelict who couldn't figure out how to use a Trap Extractor 1364 | -10/Mines | Core integrity fell below 50% 1428 | -10/Mines | Core integrity fell below 20% 1433 | -10/Mines | Destroyed by as-42064 with Assembled F-torch Last Messages --------------- 01356_ Destroyed Aluminum Leg. 01365_ G-47 Trooper destroyed. 01368_ Acquired 52 matter. 01373_ Acquired Imp. Light Armor Plating. 01384_ as-98067 destroyed. 01388_ Acquired 10 matter. 01394_ as-61520 destroyed. 01394_ Switching to secondary target: as-01945. 01400_ Assault Rifle destroyed. 01406_ Imp. Light Armor Plating destroyed. 01409_ as-65000 destroyed. 01409_ Switching to secondary target: as-01945. 01419_ Lgt. Treads destroyed. 01423_ Power failure, Lgt. Ion Engine shutdown. 01423_ as-01945 destroyed. 01426_ Lgt. Ion Engine destroyed. 01426_ Assault Rifle destroyed. 01427_ Lgt. Treads destroyed. 01428_ R-06 Scavenger collects Lgt. Ion Engine. 01431_ Overheating: Matter decay (-38). Map ----- +----------------------------------------------------+ | ?????????????????????????????????????????????????? | | ?????????????????????????????????????????????????? | | ?????????????????????????????????????????????????? | | ?????????????????????????????????????????????????? | | ?????????????????????????????????????????????????? | | ?????????????????????????????????????????????????? | | ?????????????????????????????????????????????????? | | ?????????????????????????????????????????????????? | | ?????????????????????????????????????????????????? | | ?????????????????????????????????????????????????? | | ?????????????????????????????????????????????????? | | ???????????????????????????????????????????####??? | | ???????????????????????????????????????????####??? | | ??????????????????????????? ??????????????? #??? | | ??????????????????????????? ""????????????## ##?? | | ??????????????????????????? ""????????????## ##?? | | ??????????????????????????? ????????????## ##?? | | ???????????????????????????# #????????????## ##?? | | ???????????????????????????# #?????#??????## ##?? | | ???????????????????????????# #???? #??????## ##?? | | ???????????????????????????# ##### #??????## ##?? | | ?????????????????????????### #??????## ##?? | | ?????????????????????#???# ???????## ##?? | | ?????????????????????# ### #?????????## ##?? | | ?????????????????????# a %!%% ############# #### | | ?????????????????????# @% # ########## #### | | ?????????????????????###### aa # ] # | | ??????????????????????##### %# ! | | ??????????????????????# [ " # ! | | ??????????????????????# ######## = | | ??????????????????????????????##"! = | | ??????????????????????????????##" ### r | | ??????????????????????????????######### | | ??????????????????????????????### ### | | ?????????????????????????????????????## | | ?????????????????????????????????????## | | ?????????????????????????????????????## | | ?????????????????????????????????????## | | ?????????????????????????????????????## | | ?????????????????????????????????????## ########## | | ????????????????????????????????????? ######### | | ???????????????????????????????????? #????????? | | ????????????????????????????????????#####????????? | | ????????????????????????????????????#####????????? | | ?????????????????????????????????????????????????? | | ?????????????????????????????????????????????????? | | ?????????????????????????????????????????????????? | | ?????????????????????????????????????????????????? | | ?????????????????????????????????????????????????? | | ?????????????????????????????????????????????????? | +----------------------------------------------------+ Best States ------------- Heat Dissipation 25 Energy Generation 10 Energy Capacity 125 Matter Stores 300 Matter Capacity 300 Sight Range 16 Terrain Scan Density 10 Armor Coverage 150 Evasion (%) 40 Recoil Reduction 2 Item Schematics ----------------- None Robot Schematics ------------------ None Fabricated ------------ Nothing Alien Tech Used ----------------- None Achievements -------------- None Challenges ------------ None Game ------ Seed BehemothKineticDissipator Manual? 0 Play Time 00:11:12 Cumulative 286.5 hours Start 2022.03.25 @ 17:03:04 End 2022.03.25 @ 17:25:50 Sessions 1 Manual Loads 0 Difficulty Rogue Special Mode None Game No. 439 Rogue 439 Adventurer 0 Explorer 0 Win Type - Total 5 Types 3/0/1/1/0/0/0/0/0 Lore% 78 Gallery% 79 Achievement% 62 Wizard Run 0 Options --------- ASCII 0 Keyboard 1 Movement Numpad Keybinds 0 Fullscreen 2 Font 24/Smallcaps Map View 76x50 Tactical HUD 1 Map Filters NONE Filters NONE Steam 1 RUN: f421185c-892d-4bf6-a16e-20a7949e5cd7